fUSD/lending_fUSD_20260626
["ID","MTS","AMOUNT","RATE_DAILY","PERIOD"]
[426482064,1782447044000,-573.99719756,0.00025735,2]
[426482059,1782447044000,-197.26449725,0.00025735,2]
[426482065,1782447044000,-458.05994581,0.00025735,2]
[426482069,1782447044000,-472.3811831,0.00025743,2]
[426482081,1782447044000,-243.97885196,0.00025743,2]
[426482078,1782447044000,-534.75206274,0.00025743,2]
[426482083,1782447044000,-507.77965047,0.00025748,2]
[426482082,1782447044000,-516.16072519,0.00025743,2]
[426482084,1782447044000,-209.84766078,0.00025748,2]
[426482085,1782447044000,-576.52240684,0.00025748,2]
[426482077,1782447044000,-506.57155484,0.00025743,2]
[426482075,1782447044000,-570.47251381,0.00025743,2]
[426482087,1782447044000,-204.00418421,0.00025748,2]
[426482079,1782447044000,-245.45203645,0.00025743,2]
[426482076,1782447044000,-503.98253156,0.00025743,2]
[426482086,1782447044000,-600.89011463,0.00025748,2]
[426482080,1782447044000,-471.04036245,0.00025743,2]
[426482050,1782447044000,-185.25841479,0.00025735,2]
[426482063,1782447044000,-162.8137474,0.00025735,2]
[426482051,1782447044000,-521.13295491,0.00025735,2]
[426482099,1782447044000,-506.49609698,0.00025748,2]
[426482058,1782447044000,-206.7260795,0.00025735,2]
[426482033,1782447044000,-1277.0,0.00025566,2]
[426482034,1782447044000,-947.0,0.00025594,2]
[426482028,1782447044000,-553.35,0.00025173,2]
[426482027,1782447044000,-331.59240842,0.00025126,2]
[426482031,1782447044000,-300.15,0.000255,7]
[426482032,1782447044000,-152.0,0.0002555,7]
[426482029,1782447044000,-180.09989165,0.00025263,2]
[426482047,1782447044000,-480.96008505,0.00025735,2]
[426482040,1782447044000,-511.36686109,0.00025735,2]
[426482044,1782447044000,-209.99992073,0.00025735,2]
[426482035,1782447044000,-3364.5351446,0.00025669,2]
[426482036,1782447044000,-611.22769363,0.00025692,7]
[426482039,1782447044000,-151.0,0.00025735,2]
[426482057,1782447044000,-200.68787274,0.00025735,2]
[426482037,1782447044000,-220.680973,0.00025735,2]
[426482042,1782447044000,-182.36092906,0.00025735,2]
[426482045,1782447044000,-215.08436668,0.00025735,2]
[426482041,1782447044000,-458.72965273,0.00025735,2]
[426482043,1782447044000,-551.02914009,0.00025735,2]
[426482038,1782447044000,-151.0,0.00025735,2]
[426482048,1782447044000,-155.76491572,0.00025735,2]
[426482052,1782447044000,-453.99114356,0.00025735,2]
[426482056,1782447044000,-203.2992283,0.00025735,2]
[426482049,1782447044000,-247.39069773,0.00025735,2]
[426482054,1782447044000,-781.17328295,0.00025735,2]
[426482053,1782447044000,-473.57403572,0.00025735,2]
[426482055,1782447044000,-714.26045793,0.00025735,2]
[426482060,1782447044000,-628.96597089,0.00025735,2]
[426482046,1782447044000,-245.99710636,0.00025735,2]
[426482093,1782447044000,-233.68651285,0.00025748,2]
[426482030,1782447044000,-241.23097401,0.00025397,2]
[426482094,1782447044000,-604.19374078,0.00025748,2]
[426482122,1782447044000,-467.7290749,0.0002629,2]
[426482126,1782447044000,-408.05532179,0.00026294,2]
[426482129,1782447044000,-364.72185813,0.00026294,2]
[426482128,1782447044000,-429.76400259,0.00026294,2]
[426482130,1782447044000,-183.39144829,0.00026294,2]
[426482132,1782447044000,-157.81993866,0.00026294,2]
[426482131,1782447044000,-734.70552012,0.00026294,2]
[426482127,1782447044000,-688.09447909,0.00026294,2]
[426482137,1782447044000,-311.52983143,0.00026294,2]
[426482134,1782447044000,-430.16873336,0.00026294,2]
[426482135,1782447044000,-491.99421271,0.00026294,2]
[426482136,1782447044000,-721.44012758,0.00026294,2]
[426482133,1782447044000,-419.99984147,0.00026294,2]
[426482149,1782447044000,-952.34727723,0.00026294,2]
[426482150,1782447044000,-1041.56437727,0.00026294,2]
[426482139,1782447044000,-185.5123728,0.00026294,2]
[426482141,1782447044000,-386.57456617,0.00026294,2]
[426482140,1782447044000,-494.78139545,0.00026294,2]
[426482138,1782447044000,-282.13967237,0.00026294,2]
[426482142,1782447044000,-159.76145998,0.00026294,2]
[426482145,1782447044000,-694.84393989,0.00026294,2]
[426482148,1782447044000,-631.43204763,0.00026294,2]
[426482144,1782447044000,-234.16705774,0.00026294,2]
[426482143,1782447044000,-370.51682958,0.00026294,2]
[426482147,1782447044000,-312.02464361,0.00026294,2]
[426482146,1782447044000,-605.32152475,0.00026294,2]
[426482153,1782447044000,-401.37574548,0.00026294,2]
[426482151,1782447044000,-419.72336408,0.00026294,2]
[426482152,1782447044000,-406.5984566,0.00026294,2]
[426482121,1782447044000,-486.88,0.00026275,7]
[426482123,1782447044000,-408.24451778,0.00026293,2]
[426482089,1782447044000,-651.3657753,0.00025748,2]
[426482118,1782447044000,-150.0,0.0002608,5]
[426482120,1782447044000,-406124.8157885,0.00026264,2]
[426482090,1782447044000,-526.50134687,0.00025748,2]
[426482092,1782447044000,-624.37491053,0.00025748,2]
[426482088,1782447044000,-512.80911934,0.00025748,2]
[426482091,1782447044000,-205.90000372,0.00025748,2]
[426482095,1782447044000,-601.50643486,0.00025748,2]
[426482098,1782447044000,-548.70738462,0.00025748,2]
[426482097,1782447044000,-534.78996073,0.00025748,2]
[426482096,1782447044000,-203.07370782,0.00025748,2]
[426482102,1782447044000,-220.82223993,0.00025748,2]
[426482101,1782447044000,-487.75983176,0.00025748,2]
[426482104,1782447044000,-151.0,0.0002575,2]
[426482103,1782447044000,-151.0,0.0002575,2]
[426482110,1782447044000,-8000.0,0.00025848,7]
[426482100,1782447044000,-579.131178,0.00025748,2]
[426482112,1782447044000,-10093.6054337,0.00025864,2]
[426482105,1782447044000,-573.74,0.00025754,2]
[426482119,1782447044000,-7310.79508902,0.00026222,2]
[426482117,1782447044000,-182.66,0.00026027,7]
[426482125,1782447044000,-350.18248441,0.00026294,2]
[426482115,1782447044000,-301.64,0.00026,7]
[426482116,1782447044000,-150.0,0.00026,2]
[426482113,1782447044000,-4216.0,0.00025945,3]
[426482114,1782447044000,-7310.79508902,0.00026,2]
[426482106,1782447044000,-759.92,0.00025757,2]
[426482107,1782447044000,-151.0,0.00025759,2]
[426482109,1782447044000,-2332.0,0.0002584,3]
[426482108,1782447044000,-510.94,0.00025786,2]
[426482111,1782447044000,-553.35,0.00025858,2]
[426482124,1782447044000,-681.82248145,0.00026294,2]
[426482179,1782447045000,-600.01382872,0.00026302,2]
[426482176,1782447045000,-644.91437474,0.00026301,2]
[426482187,1782447045000,-760.63001841,0.00026302,2]
[426482178,1782447045000,-629.84157747,0.00026302,2]
[426482185,1782447045000,-484.79595078,0.00026302,2]
[426482188,1782447045000,-671.97670874,0.00026302,2]
[426482183,1782447045000,-810.96458203,0.00026302,2]
[426482182,1782447045000,-193.54528885,0.00026302,2]
[426482180,1782447045000,-429.90475419,0.00026302,2]
[426482198,1782447045000,-441.64447986,0.00026302,2]
[426482181,1782447045000,-474.78799457,0.00026302,2]
[426482186,1782447045000,-449.84192485,0.00026302,2]
[426482189,1782447045000,-675.42873979,0.00026302,2]
[426482191,1782447045000,-713.00275031,0.00026302,2]
[426482197,1782447045000,-688.21430025,0.00026302,2]
[426482199,1782447045000,-677.03953396,0.00026307,2]
[426482201,1782447045000,-801.18681951,0.00026307,2]
[426482177,1782447045000,-438.84850092,0.00026302,2]
[426482184,1782447045000,-404.22666804,0.00026302,2]
[426482172,1782447045000,-392.47097785,0.00026294,2]
[426482161,1782447045000,-478.78336899,0.00026294,2]
[426482169,1782447045000,-160.30085569,0.00026294,2]
[426482157,1782447045000,-165.78920298,0.00026294,2]
[426482154,1782447045000,-413.45215901,0.00026294,2]
[426482156,1782447045000,-395.9835908,0.00026294,2]
[426482155,1782447045000,-394.52899451,0.00026294,2]
[426482158,1782447045000,-427.69382323,0.00026294,2]
[426482159,1782447045000,-838.62129452,0.00026294,2]
[426482192,1782447045000,-490.90407291,0.00026302,2]
[426482160,1782447045000,-301.14518982,0.00026294,2]
[426482162,1782447045000,-222.47990996,0.00026294,2]
[426482175,1782447045000,-409.84609203,0.000263,2]
[426482174,1782447045000,-443.49372262,0.00026294,2]
[426482167,1782447045000,-304.29606457,0.00026294,2]
[426482164,1782447045000,-1167.57619488,0.00026294,2]
[426482166,1782447045000,-160.52614116,0.00026294,2]
[426482163,1782447045000,-352.23777355,0.00026294,2]
[426482173,1782447045000,-610.74659441,0.00026294,2]
[426482170,1782447045000,-765.32959675,0.00026294,2]
[426482165,1782447045000,-184.1702866,0.00026294,2]
[426482171,1782447045000,-157.31506445,0.00026294,2]
[426482168,1782447045000,-325.62749479,0.00026294,2]
[426482190,1782447045000,-457.8494417,0.00026302,2]
[426482195,1782447045000,-212.33070292,0.00026302,2]
[426482196,1782447045000,-487.95770393,0.00026302,2]
[426482220,1782447045000,-731.63974764,0.00026307,2]
[426482218,1782447045000,-731.60984615,0.00026307,2]
[426482223,1782447045000,-229.90086396,0.00026307,2]
[426482221,1782447045000,-772.174904,0.00026307,2]
[426482222,1782447045000,-200.13721741,0.00026307,2]
[426482233,1782447045000,-1266.54,0.00026404,2]
[426482235,1782447045000,-7310.79508902,0.00026444,2]
[426482237,1782447045000,-7310.79508902,0.00026667,2]
[426482232,1782447045000,-562.65,0.00026404,7]
[426482238,1782447045000,-1184.0,0.00026768,2]
[426482234,1782447045000,-759.93,0.00026442,2]
[426482236,1782447045000,-573.74,0.00026581,2]
[426482240,1782447045000,-34963.74820424,0.000268,2]
[426482239,1782447045000,-1012.52198114,0.000268,15]
[426482231,1782447045000,-1558.01,0.00026404,2]
[426482194,1782447045000,-436.33831095,0.00026302,2]
[426482244,1782447045000,-751.62615228,0.000268,2]
[426482243,1782447045000,-751060.30489528,0.000268,2]
[426482242,1782447045000,-500.0,0.00014178,2]
[426482225,1782447045000,-325.8483992,0.00026397,2]
[426482226,1782447045000,-241.23097401,0.00026397,2]
[426482241,1782447045000,-850.06348174,0.000268,2]
[426482224,1782447045000,-326.42993604,0.00026397,2]
[426482219,1782447045000,-675.32812931,0.00026307,2]
[426482193,1782447045000,-628.0538166,0.00026302,2]
[426482200,1782447045000,-768.69654245,0.00026307,2]
[426482203,1782447045000,-683.74549246,0.00026307,2]
[426482202,1782447045000,-382.84692595,0.00026307,2]
[426482213,1782447045000,-371.92863525,0.00026307,2]
[426482204,1782447045000,-868.48770041,0.00026307,2]
[426482210,1782447045000,-406.65205699,0.00026307,2]
[426482211,1782447045000,-805.59165438,0.00026307,2]
[426482205,1782447045000,-702.00179583,0.00026307,2]
[426482209,1782447045000,-832.49988071,0.00026307,2]
[426482207,1782447045000,-411.80000744,0.00026307,2]
[426482206,1782447045000,-427.69505154,0.00026307,2]
[426482229,1782447045000,-250.87478954,0.00026397,2]
[426482228,1782447045000,-299.12885586,0.00026397,2]
[426482227,1782447045000,-240.71927724,0.00026397,2]
[426482230,1782447045000,-7849.33437163,0.000264,2]
[426482215,1782447045000,-406.14741563,0.00026307,2]
[426482208,1782447045000,-419.13387339,0.00026307,2]
[426482212,1782447045000,-802.00857981,0.00026307,2]
[426482216,1782447045000,-713.05328097,0.00026307,2]
[426482248,1782447046000,-1531.21412387,0.000268,2]
[426482246,1782447046000,-603.402,0.00014178,2]
[426482247,1782447046000,-4974.86130276,0.00015675,2]
[426482249,1782447046000,-216.0,0.00014066,2]
[426482245,1782447046000,-159.01960226,0.00013937,2]
[426482253,1782447046000,-5521.43216879,0.000268,2]
[426482251,1782447046000,-216.0,0.00017066,2]
[426482252,1782447046000,-616.1809676,0.000268,2]
[426482250,1782447046000,-99376.83509795,0.000268,2]
[426482255,1782447046000,-216.0,0.00020066,2]
[426482254,1782447046000,-512.0,0.000268,2]
[426482262,1782447046000,-779.2648233,0.000268,2]
[426482260,1782447046000,-963.88414,0.000268,2]
[426482259,1782447046000,-813.752254,0.000268,2]
[426482256,1782447046000,-11810.37642792,0.000268,2]
[426482261,1782447046000,-1721.8079568,0.000268,2]
[426482258,1782447046000,-4448.91034693,0.000268,2]
[426482263,1782447046000,-440.69857843,0.000268,2]
[426482257,1782447046000,-8372.3759704,0.000268,2]
[426482276,1782447306000,343.0,0.00037257,120]
[426482285,1782448062000,8000.0,0.00037253,120]
[426482286,1782448117000,226.694406,0.00037253,120]
[426482288,1782448117000,226.694406,0.00037253,120]
[426482287,1782448117000,226.694406,0.00037253,120]
[426482290,1782448118000,226.694406,0.00037253,120]
[426482289,1782448118000,226.694406,0.00037253,120]
[426482292,1782448119000,226.694406,0.00037253,120]
[426482291,1782448119000,226.694406,0.00037253,120]
[426482293,1782448119000,226.694406,0.00037253,120]
[426482295,1782448120000,226.694406,0.00037253,120]
[426482294,1782448120000,226.694406,0.00037253,120]
[426482298,1782448121000,226.694406,0.00037253,120]
[426482297,1782448121000,226.694406,0.00037253,120]
[426482296,1782448121000,226.694406,0.00037253,120]
[426482299,1782448122000,226.694406,0.00037253,120]
[426482300,1782448122000,226.694406,0.00037253,120]
[426482301,1782448123000,226.694406,0.00037253,120]
[426482303,1782448123000,226.694406,0.00037253,120]
[426482302,1782448123000,226.694406,0.00037253,120]
[426482304,1782448124000,226.694406,0.00037253,120]
[426482305,1782448124000,226.694405,0.00037253,120]
[426482306,1782448132000,499.133253,0.00037253,120]
[426482309,1782448133000,499.133253,0.00037253,120]
[426482308,1782448133000,499.133253,0.00037253,120]
[426482307,1782448133000,499.133253,0.00037253,120]
[426482311,1782448134000,499.133253,0.00037253,120]
[426482310,1782448134000,499.133253,0.00037253,120]
[426482312,1782448135000,499.133253,0.00037253,120]
[426482314,1782448135000,499.133253,0.00037253,120]
[426482313,1782448135000,499.133253,0.00037253,120]
[426482316,1782448136000,499.133253,0.00037253,120]
[426482315,1782448136000,499.133253,0.00037253,120]
[426482318,1782448137000,499.133253,0.00037253,120]
[426482317,1782448137000,499.133253,0.00037253,120]
[426482321,1782448138000,499.133253,0.00037253,120]
[426482320,1782448138000,499.133253,0.00037253,120]
[426482319,1782448138000,499.133253,0.00037253,120]
[426482323,1782448139000,499.133253,0.00037253,120]
[426482322,1782448139000,499.133253,0.00037253,120]
[426482325,1782448140000,499.133254,0.00037253,120]
[426482324,1782448140000,499.133253,0.00037253,120]
[426482326,1782448148000,501.120728,0.00037253,120]
[426482329,1782448149000,501.120728,0.00037253,120]
[426482328,1782448149000,501.120728,0.00037253,120]
[426482327,1782448149000,501.120728,0.00037253,120]
[426482331,1782448150000,501.120728,0.00037253,120]
[426482330,1782448150000,501.120728,0.00037253,120]
[426482334,1782448151000,501.120728,0.00037253,120]
[426482333,1782448151000,501.120728,0.00037253,120]
[426482332,1782448151000,501.120728,0.00037253,120]
[426482335,1782448152000,151.0,0.00037253,120]
[426482336,1782448152000,501.120728,0.00037253,120]
[426482337,1782448152000,1985.509568,0.00037253,120]
[426482341,1782448152000,1985.509568,0.00037253,120]
[426482339,1782448152000,501.120728,0.00037253,120]
[426482340,1782448152000,151.0,0.00037253,120]
[426482338,1782448152000,151.0,0.00037253,120]
[426482342,1782448153000,151.0,0.00037253,120]
[426482344,1782448153000,151.0,0.00037253,120]
[426482345,1782448153000,151.0,0.00037253,120]
[426482343,1782448153000,501.120728,0.00037253,120]
[426482348,1782448153000,1985.509568,0.00037253,120]
[426482349,1782448153000,151.0,0.00037253,120]
[426482346,1782448153000,501.120728,0.00037253,120]
[426482347,1782448153000,225.649593,0.00037253,120]
[426482350,1782448153000,501.120728,0.00037253,120]
[426482357,1782448154000,1985.509568,0.00037253,120]
[426482356,1782448154000,501.120728,0.00037253,120]
[426482355,1782448154000,151.0,0.00037253,120]
[426482354,1782448154000,1985.509568,0.00037253,120]
[426482353,1782448154000,501.120728,0.00037253,120]
[426482352,1782448154000,151.0,0.00037253,120]
[426482351,1782448154000,1985.509568,0.00037253,120]
[426482358,1782448155000,151.0,0.00037253,120]
[426482359,1782448155000,501.120728,0.00037253,120]
[426482360,1782448155000,1985.509568,0.00037253,120]
[426482364,1782448155000,215.193245,0.00037253,120]
[426482362,1782448155000,501.120728,0.00037253,120]
[426482363,1782448155000,1985.509568,0.00037253,120]
[426482361,1782448155000,151.0,0.00037253,120]
[426482365,1782448155000,501.120728,0.00037253,120]
[426482366,1782448156000,1985.509568,0.00037253,120]
[426482368,1782448156000,1985.509568,0.00037253,120]
[426482367,1782448156000,501.120729,0.00037253,120]
[426482369,1782448157000,1985.509568,0.00037253,120]
[426482371,1782448157000,151.0,0.00037253,120]
[426482370,1782448157000,1985.509568,0.00037253,120]
[426482375,1782448158000,151.0,0.00037253,120]
[426482374,1782448158000,1985.509568,0.00037253,120]
[426482373,1782448158000,151.0,0.00037253,120]
[426482372,1782448158000,1985.509568,0.00037253,120]
[426482381,1782448159000,151.0,0.00037253,120]
[426482380,1782448159000,1985.509568,0.00037253,120]
[426482379,1782448159000,151.0,0.00037253,120]
[426482378,1782448159000,1985.509568,0.00037253,120]
[426482377,1782448159000,151.0,0.00037253,120]
[426482376,1782448159000,1985.509568,0.00037253,120]
[426482382,1782448160000,151.0,0.00037253,120]
[426482383,1782448160000,151.0,0.00037253,120]
[426482387,1782448160000,1985.509568,0.00037253,120]
[426482385,1782448160000,151.0,0.00037253,120]
[426482386,1782448160000,151.0,0.00037253,120]
[426482384,1782448160000,1985.509568,0.00037253,120]
[426482392,1782448161000,151.0,0.00037253,120]
[426482391,1782448161000,151.0,0.00037253,120]
[426482390,1782448161000,1985.509559,0.00037253,120]
[426482389,1782448161000,151.0,0.00037253,120]
[426482388,1782448161000,151.0,0.00037253,120]
[426482393,1782448162000,151.0,0.00037253,120]
[426482395,1782448162000,151.0,0.00037253,120]
[426482394,1782448162000,151.0,0.00037253,120]
[426482397,1782448162000,151.0,0.00037253,120]
[426482399,1782448162000,151.0,0.00037253,120]
[426482396,1782448162000,151.0,0.00037253,120]
[426482398,1782448162000,2789.618215,0.00037253,120]
[426482406,1782448163000,2789.618215,0.00037253,120]
[426482405,1782448163000,151.0,0.00037253,120]
[426482404,1782448163000,151.0,0.00037253,120]
[426482402,1782448163000,2789.618215,0.00037253,120]
[426482403,1782448163000,151.0,0.00037253,120]
[426482400,1782448163000,151.0,0.00037253,120]
[426482401,1782448163000,151.0,0.00037253,120]
[426482407,1782448164000,151.0,0.00037253,120]
[426482408,1782448164000,151.0,0.00037253,120]
[426482409,1782448164000,151.0,0.00037253,120]
[426482410,1782448164000,151.0,0.00037253,120]
[426482413,1782448164000,151.0,0.00037253,120]
[426482412,1782448164000,151.0,0.00037253,120]
[426482415,1782448164000,2789.618215,0.00037253,120]
[426482411,1782448164000,2789.618215,0.00037253,120]
[426482414,1782448164000,151.0,0.00037253,120]
[426482418,1782448165000,151.0,0.00037253,120]
[426482416,1782448165000,151.0,0.00037253,120]
[426482417,1782448165000,151.0,0.00037253,120]
[426482419,1782448165000,2789.618215,0.00037253,120]
[426482421,1782448165000,151.0,0.00037253,120]
[426482422,1782448165000,151.0,0.00037253,120]
[426482423,1782448165000,2789.618215,0.00037253,120]
[426482420,1782448165000,151.0,0.00037253,120]
[426482431,1782448166000,2789.618215,0.00037253,120]
[426482430,1782448166000,151.0,0.00037253,120]
[426482429,1782448166000,151.0,0.00037253,120]
[426482428,1782448166000,151.0,0.00037253,120]
[426482427,1782448166000,2789.618215,0.00037253,120]
[426482425,1782448166000,151.0,0.00037253,120]
[426482426,1782448166000,285.684261,0.00037253,120]
[426482424,1782448166000,151.0,0.00037253,120]
[426482432,1782448167000,151.0,0.00037253,120]
[426482433,1782448167000,151.0,0.00037253,120]
[426482434,1782448167000,151.0,0.00037253,120]
[426482439,1782448167000,2789.618215,0.00037253,120]
[426482436,1782448167000,162.155799,0.00037253,120]
[426482437,1782448167000,151.0,0.00037253,120]
[426482438,1782448167000,151.0,0.00037253,120]
[426482435,1782448167000,2789.618215,0.00037253,120]
[426482440,1782448168000,151.0,0.00037253,120]
[426482441,1782448168000,151.0,0.00037253,120]
[426482443,1782448168000,151.0,0.00037253,120]
[426482442,1782448168000,2789.618215,0.00037253,120]
[426482445,1782448168000,2789.618215,0.00037253,120]
[426482446,1782448168000,151.0,0.00037253,120]
[426482447,1782448168000,151.0,0.00037253,120]
[426482444,1782448168000,151.0,0.00037253,120]
[426482452,1782448169000,151.0,0.00037253,120]
[426482453,1782448169000,151.0,0.00037253,120]
[426482451,1782448169000,2789.618215,0.00037253,120]
[426482449,1782448169000,151.0,0.00037253,120]
[426482450,1782448169000,151.0,0.00037253,120]
[426482448,1782448169000,2789.618215,0.00037253,120]
[426482455,1782448170000,151.0,0.00037253,120]
[426482454,1782448170000,277.083573,0.00037253,120]
[426482457,1782448170000,151.0,0.00037253,120]
[426482458,1782448170000,2789.618215,0.00037253,120]
[426482456,1782448170000,2789.618215,0.00037253,120]
[426482464,1782448171000,2789.61822,0.00037253,120]
[426482463,1782448171000,268.509963,0.00037253,120]
[426482462,1782448171000,2789.618215,0.00037253,120]
[426482461,1782448171000,151.0,0.00037253,120]
[426482460,1782448171000,2789.618215,0.00037253,120]
[426482459,1782448171000,151.0,0.00037253,120]
[426482467,1782448172000,213.792098,0.00037253,120]
[426482466,1782448172000,213.792098,0.00037253,120]
[426482465,1782448172000,213.792098,0.00037253,120]
[426482468,1782448173000,213.792098,0.00037253,120]
[426482469,1782448174000,213.792098,0.00037253,120]
[426482471,1782448174000,213.792098,0.00037253,120]
[426482470,1782448174000,213.792098,0.00037253,120]
[426482474,1782448175000,151.0,0.00037253,120]
[426482473,1782448175000,213.792098,0.00037253,120]
[426482472,1782448175000,213.792098,0.00037253,120]
[426482479,1782448176000,151.0,0.00037253,120]
[426482478,1782448176000,151.0,0.00037253,120]
[426482477,1782448176000,213.792098,0.00037253,120]
[426482476,1782448176000,151.0,0.00037253,120]
[426482475,1782448176000,213.792098,0.00037253,120]
[426482480,1782448177000,213.792098,0.00037253,120]
[426482481,1782448177000,166.555205,0.00037253,120]
[426482482,1782448177000,151.0,0.00037253,120]
[426482483,1782448177000,213.792098,0.00037253,120]
[426482486,1782448177000,213.792098,0.00037253,120]
[426482485,1782448177000,151.0,0.00037253,120]
[426482487,1782448177000,151.0,0.00037253,120]
[426482488,1782448177000,151.0,0.00037253,120]
[426482484,1782448177000,151.0,0.00037253,120]
[426482489,1782448178000,213.792098,0.00037253,120]
[426482491,1782448178000,151.0,0.00037253,120]
[426482490,1782448178000,318.233346,0.00037253,120]
[426482492,1782448178000,151.0,0.00037253,120]
[426482497,1782448178000,247.249491,0.00037253,120]
[426482495,1782448178000,213.792098,0.00037253,120]
[426482498,1782448178000,151.0,0.00037253,120]
[426482493,1782448178000,151.0,0.00037253,120]
[426482494,1782448178000,318.233346,0.00037253,120]
[426482496,1782448178000,151.0,0.00037253,120]
[426482506,1782448179000,213.792098,0.00037253,120]
[426482505,1782448179000,318.233346,0.00037253,120]
[426482503,1782448179000,151.0,0.00037253,120]
[426482504,1782448179000,151.0,0.00037253,120]
[426482502,1782448179000,318.233346,0.00037253,120]
[426482500,1782448179000,213.792098,0.00037253,120]
[426482501,1782448179000,151.0,0.00037253,120]
[426482499,1782448179000,151.0,0.00037253,120]
[426482507,1782448179000,151.0,0.00037253,120]
[426482509,1782448180000,318.233346,0.00037253,120]
[426482510,1782448180000,213.792098,0.00037253,120]
[426482511,1782448180000,219.12216941,0.00037253,120]
[426482512,1782448180000,151.0,0.00037253,120]
[426482508,1782448180000,151.0,0.00037253,120]
[426482515,1782448180000,213.792106,0.00037253,120]
[426482514,1782448180000,318.233346,0.00037253,120]
[426482517,1782448180000,151.0,0.00037253,120]
[426482513,1782448180000,151.0,0.00037253,120]
[426482516,1782448180000,151.0,0.00037253,120]
[426482518,1782448181000,318.233346,0.00037253,120]
[426482519,1782448181000,154.050817,0.00037253,120]
[426482520,1782448181000,275.07932,0.00037253,120]
[426482523,1782448181000,151.0,0.00037253,120]
[426482522,1782448181000,318.233346,0.00037253,120]
[426482524,1782448181000,318.233346,0.00037253,120]
[426482521,1782448181000,151.0,0.00037253,120]
[426482528,1782448182000,318.233346,0.00037253,120]
[426482526,1782448182000,318.233346,0.00037253,120]
[426482525,1782448182000,151.0,0.00037253,120]
[426482527,1782448182000,151.0,0.00037253,120]
[426482532,1782448183000,318.233346,0.00037253,120]
[426482531,1782448183000,318.233346,0.00037253,120]
[426482530,1782448183000,318.233346,0.00037253,120]
[426482529,1782448183000,163.34125,0.00037253,120]
[426482533,1782448184000,551.168349,0.00037253,120]
[426482535,1782448185000,318.233346,0.00037253,120]
[426482534,1782448185000,551.168349,0.00037253,120]
[426482536,1782448185000,551.168349,0.00037253,120]
[426482538,1782448185000,551.168349,0.00037253,120]
[426482537,1782448185000,318.233346,0.00037253,120]
[426482542,1782448186000,551.168349,0.00037253,120]
[426482541,1782448186000,318.233346,0.00037253,120]
[426482540,1782448186000,551.168349,0.00037253,120]
[426482539,1782448186000,318.233346,0.00037253,120]
[426482543,1782448186000,318.233346,0.00037253,120]
[426482545,1782448187000,318.233336,0.00037253,120]
[426482544,1782448187000,551.168349,0.00037253,120]
[426482547,1782448187000,551.168349,0.00037253,120]
[426482546,1782448187000,551.168349,0.00037253,120]
[426482548,1782448188000,551.168349,0.00037253,120]
[426482549,1782448188000,551.168349,0.00037253,120]
[426482551,1782448189000,551.168349,0.00037253,120]
[426482550,1782448189000,551.168349,0.00037253,120]
[426482554,1782448190000,551.168349,0.00037253,120]
[426482553,1782448190000,551.168349,0.00037253,120]
[426482552,1782448190000,551.168349,0.00037253,120]
[426482555,1782448191000,551.168349,0.00037253,120]
[426482556,1782448191000,551.168349,0.00037253,120]
[426482557,1782448191000,151.0,0.00037253,120]
[426482561,1782448192000,151.0,0.00037253,120]